fUSD/lending_fUSD_20240827
["ID","MTS","AMOUNT","RATE_DAILY","PERIOD"]
[336372278,1724795442615,-500.0,0.00010999,2]
[336372280,1724795442625,-826.13,0.00010999,2]
[336372282,1724795442634,-658.38,0.00010999,2]
[336372284,1724795442645,-500.0,0.00010999,2]
[336372286,1724795442656,-826.13,0.00010999,2]
[336372288,1724795442669,-658.38,0.00010999,2]
[336372290,1724795442680,-500.0,0.00010999,2]
[336372292,1724795442691,-826.13,0.00010999,2]
[336372294,1724795442701,-658.38,0.00010999,2]
[336372296,1724795442711,-500.0,0.00010999,2]
[336372298,1724795442721,-826.13,0.00010999,2]
[336372300,1724795442730,-658.38,0.00010999,2]
[336372302,1724795442739,-500.0,0.00010999,2]
[336372304,1724795442751,-826.13,0.00010999,2]
[336372306,1724795442761,-658.38,0.00010999,2]
[336372308,1724795442771,-500.0,0.00010999,2]
[336372310,1724795442782,-826.13,0.00010999,2]
[336372313,1724795442792,-658.38,0.00010999,2]
[336372315,1724795442807,-500.0,0.00010999,2]
[336372317,1724795442818,-826.13,0.00010999,2]
[336372319,1724795442828,-658.38,0.00010999,2]
[336372321,1724795442838,-535.21468449,0.00010999,2]
[336372323,1724795442848,-826.13,0.00010999,2]
[336372325,1724795442858,-658.42,0.00010999,2]
[336372327,1724795442868,-826.13,0.00010999,2]
[336372329,1724795442878,-826.13,0.00010999,2]
[336372331,1724795442888,-826.13,0.00010999,2]
[336372333,1724795442899,-826.13,0.00010999,2]
[336372335,1724795442909,-826.18630113,0.00010999,2]
[336372338,1724795442919,-588.45,0.00010999,2]
[336372341,1724795442930,-588.45,0.00010999,2]
[336372344,1724795442940,-588.45,0.00010999,2]
[336372348,1724795442950,-588.45,0.00010999,2]
[336372352,1724795442959,-588.45,0.00010999,2]
[336372355,1724795442969,-588.45,0.00010999,2]
[336372359,1724795442979,-588.45,0.00010999,2]
[336372363,1724795442989,-588.45,0.00010999,2]
[336372367,1724795442999,-588.45,0.00010999,2]
[336372372,1724795443009,-588.45,0.00010999,2]
[336372377,1724795443019,-588.45,0.00010999,2]
[336372382,1724795443029,-588.45,0.00010999,2]
[336372386,1724795443040,-588.45,0.00010999,2]
[336372390,1724795443050,-588.45,0.00010999,2]
[336372395,1724795443064,-588.45,0.00010999,2]
[336372398,1724795443074,-588.45,0.00010999,2]
[336372401,1724795443084,-588.45,0.00010999,2]
[336372404,1724795443094,-588.45,0.00010999,2]
[336372407,1724795443104,-588.45,0.00010999,2]
[336372411,1724795443114,-588.45,0.00010999,2]
[336372415,1724795443124,-588.56447132,0.00010999,2]
[336372419,1724795443134,-500.0,0.00010999,2]
[336372423,1724795443145,-500.0,0.00010999,2]
[336372426,1724795443155,-500.0,0.00010999,2]
[336372429,1724795443165,-500.0,0.00010999,2]
[336372433,1724795443175,-500.0,0.00010999,2]
[336372436,1724795443186,-500.0,0.00010999,2]
[336372439,1724795443196,-500.0,0.00010999,2]
[336372442,1724795443206,-500.0,0.00010999,2]
[336372445,1724795443216,-500.0,0.00010999,2]
[336372448,1724795443226,-500.0,0.00010999,2]
[336372451,1724795443236,-500.0,0.00010999,2]
[336372454,1724795443246,-500.0,0.00010999,2]
[336372457,1724795443256,-500.0,0.00010999,2]
[336372459,1724795443266,-500.0,0.00010999,2]
[336372462,1724795443276,-500.0,0.00010999,2]
[336372464,1724795443287,-318.14218117,0.00010999,2]
[336372466,1724795443297,-500.0,0.00010999,2]
[336372468,1724795443309,-500.0,0.00010999,2]
[336372471,1724795443318,-500.0,0.00010999,2]
[336372474,1724795443328,-484.36,0.00010999,2]
[336372477,1724795443338,-500.0,0.00010999,2]
[336372480,1724795443348,-449.94004257,0.00010999,2]
[336372483,1724795443358,-500.0,0.00010999,2]
[336372486,1724795443368,-283.83526836,0.00010999,2]
[336372489,1724795443379,-500.0,0.00010999,2]
[336372492,1724795443389,-500.0,0.00010999,2]
[336372495,1724795443399,-500.0,0.00010999,2]
[336372498,1724795443410,-500.0,0.00010999,2]
[336372501,1724795443419,-500.0,0.00010999,2]
[336372504,1724795443431,-500.0,0.00010999,2]
[336372507,1724795443440,-500.0,0.00010999,2]
[336372512,1724795443450,-500.0,0.00010999,2]
[336372515,1724795443461,-500.0,0.00010999,2]
[336372518,1724795443470,-500.0,0.00010999,2]
[336372521,1724795443480,-500.0,0.00010999,2]
[336372524,1724795443490,-500.0,0.00010999,2]
[336372527,1724795443500,-523.52,0.00010999,2]
[336372530,1724795443510,-500.0,0.00010999,2]
[336372533,1724795443520,-500.0,0.00010999,2]
[336372537,1724795443531,-500.0,0.00010999,2]
[336372542,1724795443541,-500.0,0.00010999,2]
[336372544,1724795443551,-500.0,0.00010999,2]
[336372548,1724795443563,-500.0,0.00010999,2]
[336372551,1724795443572,-447.9833268,0.00010999,2]
[336372554,1724795443581,-500.0,0.00010999,2]
[336372557,1724795443590,-500.0,0.00010999,2]
[336372560,1724795443600,-500.0,0.00010999,2]
[336372563,1724795443610,-500.0,0.00010999,2]
[336372565,1724795443619,-500.0,0.00010999,2]
[336372568,1724795443629,-500.0,0.00010999,2]
[336372570,1724795443640,-500.0,0.00010999,2]
[336372575,1724795443650,-485.16145566,0.00010999,2]
[336372579,1724795443659,-500.0,0.00010999,2]
[336372583,1724795443672,-500.0,0.00010999,2]
[336372587,1724795443681,-500.0,0.00010999,2]
[336372590,1724795443691,-500.0,0.00010999,2]
[336372592,1724795443701,-293.73650935,0.00010999,2]
[336372596,1724795443711,-500.0,0.00010999,2]
[336372599,1724795443721,-500.0,0.00010999,2]
[336372601,1724795443731,-500.0,0.00010999,2]
[336372604,1724795443741,-500.0,0.00010999,2]
[336372606,1724795443753,-500.0,0.00010999,2]
[336372609,1724795443764,-500.0,0.00010999,2]
[336372611,1724795443774,-500.0,0.00010999,2]
[336372615,1724795443783,-500.0,0.00010999,2]
[336372618,1724795443793,-500.0,0.00010999,2]
[336372620,1724795443805,-500.0,0.00010999,2]
[336372623,1724795443815,-500.0,0.00010999,2]
[336372626,1724795443825,-500.0,0.00010999,2]
[336372629,1724795443835,-500.0,0.00010999,2]
[336372633,1724795443845,-500.0,0.00010999,2]
[336372636,1724795443855,-500.0,0.00010999,2]
[336372639,1724795443865,-500.0,0.00010999,2]
[336372642,1724795443875,-429.72202627,0.00010999,2]
[336372644,1724795443885,-685.65,0.00010999,2]
[336372647,1724795443894,-500.0,0.00010999,2]
[336372650,1724795443904,-685.65,0.00010999,2]
[336372653,1724795443914,-633.03,0.00010999,2]
[336372657,1724795443924,-685.65,0.00010999,2]
[336372660,1724795443935,-685.65,0.00010999,2]
[336372663,1724795443944,-685.65,0.00010999,2]
[336372666,1724795443954,-543.4993667,0.00010999,2]
[336372669,1724795443964,-685.65,0.00010999,2]
[336372673,1724795443975,-685.65,0.00010999,2]
[336372676,1724795443986,-685.65,0.00010999,2]
[336372679,1724795443996,-685.65,0.00010999,2]
[336372682,1724795444006,-685.65,0.00010999,2]
[336372712,1724795444145,-685.65,0.00010999,2]
[336372714,1724795444175,-685.65,0.00010999,2]
[336372717,1724795444185,-685.65,0.00010999,2]
[336372720,1724795444195,-685.65,0.00010999,2]
[336372723,1724795444205,-685.65,0.00010999,2]
[336372725,1724795444216,-685.65,0.00010999,2]
[336372727,1724795444226,-685.65,0.00010999,2]
[336372729,1724795444235,-685.65,0.00010999,2]
[336372731,1724795444245,-685.65,0.00010999,2]
[336372732,1724795444255,-685.6782222,0.00010999,2]
[336372733,1724795444265,-500.0,0.00010999,2]
[336372734,1724795444275,-500.0,0.00010999,2]
[336372735,1724795444284,-500.0,0.00010999,2]
[336372736,1724795444294,-510.87,0.00010999,2]
[336372737,1724795444307,-2768.86178,0.00010999,2]
[336372738,1724795444316,-500.0,0.00010999,2]
[336372739,1724795444326,-500.0,0.00010999,2]
[336372740,1724795444336,-500.0,0.00010999,2]
[336372741,1724795444345,-500.0,0.00010999,2]
[336372742,1724795444355,-518.77,0.00010999,2]
[336372744,1724795444365,-500.0,0.00010999,2]
[336372746,1724795444374,-518.77,0.00010999,2]
[336372748,1724795444384,-500.0,0.00010999,2]
[336372750,1724795444394,-518.77,0.00010999,2]
[336372752,1724795444403,-500.0,0.00010999,2]
[336372754,1724795444412,-518.77,0.00010999,2]
[336372756,1724795444422,-500.0,0.00010999,2]
[336372758,1724795444431,-518.77,0.00010999,2]
[336372760,1724795444441,-500.0,0.00010999,2]
[336372762,1724795444450,-518.77,0.00010999,2]
[336372764,1724795444459,-500.0,0.00010999,2]
[336372766,1724795444469,-518.77,0.00010999,2]
[336372768,1724795444479,-518.77,0.00010999,2]
[336372770,1724795444488,-500.0,0.00010999,2]
[336372772,1724795444498,-518.77,0.00010999,2]
[336372774,1724795444509,-500.0,0.00010999,2]
[336372776,1724795444519,-518.77,0.00010999,2]
[336372778,1724795444528,-500.0,0.00010999,2]
[336372780,1724795444537,-500.0,0.00010999,2]
[336372782,1724795444546,-518.77,0.00010999,2]
[336372784,1724795444560,-500.0,0.00010999,2]
[336372786,1724795444570,-518.77,0.00010999,2]
[336372788,1724795444580,-500.0,0.00010999,2]
[336372790,1724795444589,-518.77,0.00010999,2]
[336372792,1724795444599,-500.0,0.00010999,2]
[336372794,1724795444608,-518.77,0.00010999,2]
[336372796,1724795444618,-500.0,0.00010999,2]
[336372798,1724795444628,-518.77,0.00010999,2]
[336372800,1724795444639,-500.0,0.00010999,2]
[336372802,1724795444653,-500.0,0.00010999,2]
[336372804,1724795444664,-500.0,0.00010999,2]
[336372806,1724795444674,-500.0,0.00010999,2]
[336372808,1724795444683,-518.77,0.00010999,2]
[336372810,1724795444693,-500.0,0.00010999,2]
[336372812,1724795444703,-518.77,0.00010999,2]
[336372814,1724795444712,-500.0,0.00010999,2]
[336372816,1724795444721,-518.77,0.00010999,2]
[336372817,1724795444731,-500.0,0.00010999,2]
[336372820,1724795444741,-500.0,0.00010999,2]
[336372822,1724795444751,-518.77,0.00010999,2]
[336372824,1724795444760,-500.0,0.00010999,2]
[336372825,1724795444769,-500.0,0.00010999,2]
[336372827,1724795444779,-518.81617994,0.00010999,2]
[336372829,1724795444789,-500.0,0.00010999,2]
[336372831,1724795444799,-500.0,0.00010999,2]
[336372834,1724795444811,-500.0,0.00010999,2]
[336372836,1724795444821,-500.0,0.00010999,2]
[336372837,1724795444833,-500.0,0.00010999,2]
[336372839,1724795444843,-500.0,0.00010999,2]
[336372842,1724795444854,-500.0,0.00010999,2]
[336372844,1724795444864,-500.0,0.00010999,2]
[336372846,1724795444875,-500.0,0.00010999,2]
[336372847,1724795444885,-500.0,0.00010999,2]
[336372849,1724795444895,-500.0,0.00010999,2]
[336372851,1724795444904,-500.0,0.00010999,2]
[336372853,1724795444914,-391.57276086,0.00010999,2]
[336372855,1724795444924,-500.0,0.00010999,2]
[336372857,1724795444933,-164.48595454,0.00010999,2]
[336372859,1724795444943,-500.0,0.00010999,2]
[336372861,1724795444952,-486.11594668,0.00010999,2]
[336372863,1724795444962,-535.4,0.00010999,2]
[336372865,1724795444972,-535.4,0.00010999,2]
[336372867,1724795444982,-535.4,0.00010999,2]
[336372869,1724795444992,-535.4,0.00010999,2]
[336372871,1724795445002,-535.4,0.00010999,2]
[336372873,1724795445012,-535.4,0.00010999,2]
[336372875,1724795445023,-535.4,0.00010999,2]
[336372877,1724795445033,-535.4,0.00010999,2]
[336372879,1724795445043,-535.4,0.00010999,2]
[336372881,1724795445054,-535.4,0.00010999,2]
[336372883,1724795445067,-535.4,0.00010999,2]
[336372885,1724795445078,-535.4,0.00010999,2]
[336372887,1724795445088,-535.4,0.00010999,2]
[336372889,1724795445098,-535.4,0.00010999,2]
[336372891,1724795445108,-535.4,0.00010999,2]
[336372893,1724795445117,-535.4,0.00010999,2]
[336372895,1724795445127,-854.36,0.00010999,2]
[336372897,1724795445136,-535.4,0.00010999,2]
[336372899,1724795445146,-854.36,0.00010999,2]
[336372901,1724795445155,-500.0,0.00010999,2]
[336372903,1724795445165,-535.4,0.00010999,2]
[336372905,1724795445175,-854.36,0.00010999,2]
[336372908,1724795445185,-854.36,0.00010999,2]
[336372910,1724795445195,-535.4,0.00010999,2]
[336372912,1724795445205,-500.0,0.00010999,2]
[336372914,1724795445214,-854.36,0.00010999,2]
[336372916,1724795445225,-535.61891838,0.00010999,2]
[336372918,1724795445237,-854.36,0.00010999,2]
[336372920,1724795445247,-500.0,0.00010999,2]
[336372922,1724795445257,-854.36,0.00010999,2]
[336372924,1724795445267,-500.0,0.00010999,2]
[336372926,1724795445277,-854.36,0.00010999,2]
[336372928,1724795445287,-500.0,0.00010999,2]
[336372930,1724795445297,-854.36,0.00010999,2]
[336372932,1724795445312,-500.0,0.00010999,2]
[336372934,1724795445327,-854.36,0.00010999,2]
[336372936,1724795445336,-500.0,0.00010999,2]
[336372938,1724795445346,-854.36,0.00010999,2]
[336372940,1724795445355,-520.20222199,0.00010999,2]
[336372942,1724795445365,-854.36,0.00010999,2]
[336372944,1724795445374,-1620.06,0.00010999,2]
[336372946,1724795445383,-854.36,0.00010999,2]
[336372948,1724795445393,-1620.06,0.00010999,2]
[336372950,1724795445402,-854.36,0.00010999,2]
[336372952,1724795445412,-1620.06,0.00010999,2]
[336372954,1724795445421,-854.36,0.00010999,2]
[336372956,1724795445431,-1620.06,0.00010999,2]
[336372958,1724795445441,-854.36,0.00010999,2]
[336372960,1724795445450,-1620.06,0.00010999,2]
[336372962,1724795445460,-854.36,0.00010999,2]
[336372964,1724795445469,-1620.06,0.00010999,2]
[336372966,1724795445479,-854.36,0.00010999,2]
[336372968,1724795445488,-1620.06,0.00010999,2]
[336372970,1724795445497,-854.36,0.00010999,2]
[336372972,1724795445506,-1620.06,0.00010999,2]
[336372973,1724795445515,-854.36,0.00010999,2]
[336372976,1724795445525,-1620.06,0.00010999,2]
[336372977,1724795445535,-854.46241301,0.00010999,2]
[336372979,1724795445544,-1620.06,0.00010999,2]
[336372982,1724795445556,-1620.06,0.00010999,2]
[336372983,1724795445566,-1620.06,0.00010999,2]
[336372985,1724795445575,-1620.06,0.00010999,2]
[336372987,1724795445584,-1620.06,0.00010999,2]
[336372989,1724795445594,-1620.06,0.00010999,2]
[336372991,1724795445603,-1620.06,0.00010999,2]
[336372993,1724795445612,-1620.06,0.00010999,2]
[336372995,1724795445622,-1620.06,0.00010999,2]
[336372997,1724795445631,-1620.06,0.00010999,2]
[336372999,1724795445641,-1620.2066,0.00010999,2]
[336373001,1724795445651,-500.0,0.00010999,2]
[336373003,1724795445660,-500.0,0.00010999,2]
[336373005,1724795445673,-500.0,0.00010999,2]
[336373007,1724795445682,-500.0,0.00010999,2]
[336373009,1724795445692,-500.0,0.00010999,2]
[336373011,1724795445701,-531.38362044,0.00010999,2]
[336373013,1724795445711,-500.0,0.00010999,2]
[336373015,1724795445720,-500.0,0.00010999,2]
[336373017,1724795445730,-500.0,0.00010999,2]
[336373019,1724795445740,-641.34101853,0.00010999,2]
[336373021,1724795445750,-543.28336671,0.00010999,2]
[336373023,1724795445759,-7508.3,0.00010999,2]
[336373025,1724795445769,-7508.3,0.00010999,2]
[336373027,1724795445778,-7508.3,0.00010999,2]
[336373029,1724795445787,-7508.3,0.00010999,2]
[336373031,1724795445796,-7508.3,0.00010999,2]
[336373033,1724795445808,-7508.3,0.00010999,2]
[336373035,1724795445817,-7508.3,0.00010999,2]
[336373037,1724795445827,-7508.3,0.00010999,2]
[336373039,1724795445837,-7508.3,0.00010999,2]
[336373041,1724795445846,-7508.3,0.00010999,2]
[336373044,1724795445855,-7508.3,0.00010999,2]
[336373045,1724795445865,-7508.3,0.00010999,2]
[336373048,1724795445874,-7508.3,0.00010999,2]
[336373051,1724795445883,-7508.3,0.00010999,2]
[336373054,1724795445893,-7508.3,0.00010999,2]
[336373058,1724795445904,-7508.3,0.00010999,2]
[336373061,1724795445914,-7508.3,0.00010999,2]
[336373064,1724795445925,-7508.3,0.00010999,2]
[336373067,1724795445935,-7508.3,0.00010999,2]
[336373070,1724795445945,-7508.3,0.00010999,2]
[336373073,1724795445954,-7508.53971878,0.00010999,2]
[336373076,1724795445963,-500.0,0.00010999,2]
[336373078,1724795445973,-290.87902626,0.00010999,2]
[336373082,1724795445983,-500.0,0.00010999,2]
[336373084,1724795445993,-500.0,0.00010999,2]
[336373087,1724795446003,-500.0,0.00010999,2]
[336373091,1724795446012,-500.0,0.00010999,2]
[336373095,1724795446022,-500.0,0.00010999,2]
[336373098,1724795446033,-500.0,0.00010999,2]
[336373101,1724795446043,-500.0,0.00010999,2]
[336373105,1724795446055,-500.0,0.00010999,2]
[336373108,1724795446064,-344.35036447,0.00010999,2]
[336373111,1724795446075,-2114.76221459,0.00010999,2]
[336373113,1724795446085,-500.0,0.00010999,2]
[336373116,1724795446095,-500.0,0.00010999,2]
[336373118,1724795446104,-500.0,0.00010999,2]
[336373122,1724795446114,-500.0,0.00010999,2]
[336373125,1724795446124,-595.8209744,0.00010999,2]
[336373128,1724795446134,-500.0,0.00010999,2]
[336373131,1724795446143,-500.0,0.00010999,2]
[336373135,1724795446153,-500.0,0.00010999,2]
[336373138,1724795446162,-500.0,0.00010999,2]
[336373141,1724795446172,-500.0,0.00010999,2]
[336373144,1724795446181,-500.0,0.00010999,2]
[336373146,1724795446191,-500.0,0.00010999,2]
[336373149,1724795446201,-500.0,0.00010999,2]
[336373151,1724795446210,-500.0,0.00010999,2]
[336373154,1724795446220,-500.0,0.00010999,2]
[336373156,1724795446229,-500.0,0.00010999,2]
[336373159,1724795446239,-500.0,0.00010999,2]
[336373162,1724795446248,-500.0,0.00010999,2]
[336373164,1724795446257,-500.0,0.00010999,2]
[336373167,1724795446266,-619.89,0.00010999,2]
[336373170,1724795446276,-1494.16,0.00010999,2]
[336373172,1724795446285,-197.1386879,0.00010999,2]
[336373175,1724795446295,-1494.16,0.00010999,2]
[336373177,1724795446307,-1494.16,0.00010999,2]
[336373179,1724795446316,-1494.16,0.00010999,2]
[336373181,1724795446326,-1494.16,0.00010999,2]
[336373184,1724795446335,-1494.16,0.00010999,2]
[336373186,1724795446345,-1494.16,0.00010999,2]
[336373190,1724795446354,-1494.16,0.00010999,2]
[336373193,1724795446364,-1494.16,0.00010999,2]
[336373196,1724795446374,-1494.16,0.00010999,2]
[336373199,1724795446384,-1043.85,0.00010999,2]
[336373201,1724795446393,-1494.16,0.00010999,2]
[336373204,1724795446403,-1043.85,0.00010999,2]
[336373207,1724795446413,-364664.16317885,0.00011,2]
[336373210,1724795446423,-1000.0,0.00011,2]
[336373213,1724795446433,-1000.0,0.00011,2]
[336373217,1724795446444,-1000.0,0.00011,2]
[336373219,1724795446454,-1000.0,0.00011,2]
[336373222,1724795446463,-1000.0,0.00011,2]
[336373226,1724795446473,-348.93844026,0.00011,2]
[336373229,1724795446483,-68661.78424197,0.00011,2]
[336373281,1724795446735,-612.95,0.00011,2]
[336373284,1724795446749,-27584.75457925,0.00011,2]
[336373289,1724795446764,-121432.11210606,0.00011,2]
[336373293,1724795446781,-404.0365253,0.00011,2]
[336373348,1724795447055,-4802.2494352,0.00010949,2]
[336373351,1724795447064,-1043.85,0.00010999,2]
[336373354,1724795447075,-1494.16,0.00010999,2]
[336373357,1724795447084,-1043.85,0.00010999,2]
[336373360,1724795447094,-1494.16,0.00010999,2]
[336373362,1724795447104,-1494.16,0.00010999,2]
[336373365,1724795447114,-1494.16,0.00010999,2]
[336373369,1724795447124,-1494.16,0.00010999,2]
[336373372,1724795447134,-1494.16,0.00010999,2]
[336373374,1724795447143,-1043.85,0.00010999,2]
[336373377,1724795447152,-974.6856348,0.00010999,2]
[336373380,1724795447163,-519.4743652,0.00010999,2]
[336373383,1724795447173,-1043.85,0.00010999,2]
[336373386,1724795447183,-936.6756348,0.00010999,2]
[336373389,1724795447195,-367.64642988,0.00010999,2]
[336373396,1724795447221,-189.83793532,0.00010999,2]
[336373399,1724795447231,-809.9568256,0.00010999,2]
[336373402,1724795447242,-233.8931744,0.00010999,2]
[336373405,1724795447252,-762.20872209,0.00010999,2]
[336373409,1724795447263,-732.08615405,0.00010999,2]
[336373412,1724795447273,-932.90391774,0.00010999,2]
[336373416,1724795447285,-110.94608226,0.00010999,2]
[336373419,1724795447294,-1043.85,0.00010999,2]
[336373422,1724795447306,-483.59316654,0.00010999,2]
[336373425,1724795447318,-560.25683346,0.00010999,2]
[336373428,1724795447328,-381.48959023,0.00010999,2]
[336373431,1724795447341,-662.36040977,0.00010999,2]
[336373434,1724795447351,-1043.85,0.00010999,2]
[336373438,1724795447361,-111.65959023,0.00010999,2]
[336373442,1724795447373,-932.19040977,0.00010999,2]
[336373445,1724795447382,-120513.8095902,0.00011,2]
[336373448,1724795447392,-6028.022,0.00011,2]
[336373451,1724795447404,-509.3973985,0.00011,2]
[336373454,1724795447415,-2239.78754977,0.00011,2]
[336373457,1724795447427,-4549.54500006,0.00011,2]
[336373462,1724795447442,-310.30999995,0.00011,2]
[336373465,1724795447454,-16728.75173612,0.00011,2]
[336373467,1724795447465,-2000.0,0.00011,2]
[336373469,1724795447474,-2000.0,0.00011,2]
[336373506,1724795447641,-2000.0,0.00011,2]
[336373509,1724795447651,-1052.56443526,0.00011,2]
[336373512,1724795447661,-250.0,0.00011,2]
[336373515,1724795447674,-129585.73228203,0.00011,2]
[336373518,1724795447686,-5178.35223629,0.00011,2]
[336373521,1724795447697,-635.25,0.00011,2]
[336373523,1724795447709,-41328.75436745,0.00011,2]
[336373525,1724795447719,-2000.0,0.00011,2]
[336373527,1724795447728,-320421.24563258,0.00011,2]
[336373530,1724795447741,-1070.1255496,0.00011,2]
[336373535,1724795447785,-3014.15,0.00011,2]
[336373537,1724795447798,-10491.08146997,0.00011,2]
[336373539,1724795447813,-1211.185,0.00011,2]
[336373555,1724795448093,-1043.85,0.00010999,2]
[336373557,1724795448103,-1043.85,0.00010999,2]
[336373559,1724795448113,-1043.85,0.00010999,2]
[336373560,1724795448123,-1043.85,0.00010999,2]
[336373562,1724795448132,-1043.85,0.00010999,2]
[336373564,1724795448142,-265825.87408422,0.00011,2]
[336373566,1724795448151,-61164.48081377,0.00011,2]
[336373569,1724795448166,-158072.96174175,0.00011,2]
[336373571,1724795448175,-500.0,0.00011,2]
[336373573,1724795448184,-10000.0,0.00011,2]
[336373575,1724795448194,-264847.8354015,0.00011,2]
[336373577,1724795448205,-326.52891564,0.00011,2]
[336373579,1724795448216,-611.11,0.00011,2]
[336373581,1724795448228,-9115.13699998,0.00011,2]
[336373583,1724795448239,-3183.61580213,0.00011,2]
[336373586,1724795448255,-403.74637758,0.00010999,2]
[336373588,1724795448266,-640.10362242,0.00010999,2]
[336373590,1724795448277,-8455.34691778,0.00011,2]
[336373592,1724795448288,-386.17339899,0.00011,2]
[336373594,1724795448299,-47322.41539731,0.00011,2]
[336373597,1724795448319,-432.88894396,0.00010999,2]
[336373599,1724795448330,-611.06427613,0.00010999,2]
[336373601,1724795448339,-1.87559733,0.00011,2]
[336373603,1724795448350,-40593.09530856,0.00011,2]
[336373605,1724795448361,-500.0,0.00011,2]
[336373608,1724795448374,-148994.7896191,0.00011,2]
[336373610,1724795448385,-6091.1,0.00011,2]
[336373612,1724795448400,-846.41447106,0.00011,2]
[336373614,1724795448412,-18148.52491101,0.00011,2]
[336373617,1724795448423,-4240.9191695,0.00011,2]
[336373619,1724795448434,-5710.61751096,0.00011,2]
[336373621,1724795448446,-573.16626518,0.00011,2]
[336373623,1724795448457,-365.885,0.00011,2]
[336373639,1724795448605,-33485.6107922,0.00011,2]
[336373641,1724795448618,-41377.93152828,0.00011,2]
[336373643,1724795448629,-7855.3715036,0.00011,2]
[336373646,1724795448641,-1104.36414092,0.00011,2]
[336373648,1724795448652,-9946.01647691,0.00011,2]
[336373650,1724795448664,-4362.55266318,0.00011,2]
[336373652,1724795448677,-1646.2617897,0.00011,2]
[336373654,1724795448688,-337.06741678,0.00011,2]
[336373656,1724795448700,-1745.585,0.00011,2]
[336373658,1724795448713,-813.34928845,0.00011,2]
[336373661,1724795448725,-23298.88538689,0.00011,2]
[336373663,1724795448736,-30236.0,0.00011,2]
[336373665,1724795448747,-514.96451937,0.00011,2]
[336373667,1724795448759,-2321.54694979,0.00011,2]
[336373669,1724795448771,-482.99999997,0.00011,2]
[336373671,1724795448782,-302.9800903,0.00011,2]
[336373674,1724795448797,-851.90336111,0.00011,2]
[336373676,1724795448811,-2506.0,0.00011,2]
[336373678,1724795448822,-3025.0,0.00011,2]
[336373680,1724795448833,-1502.9999998,0.00011,2]
[336373682,1724795448845,-3056.0,0.00011,2]
[336373685,1724795448857,-30440.0,0.00011,2]
[336373687,1724795448869,-904.81662592,0.00011,2]
[336373689,1724795448880,-2702.43154034,0.00011,2]
[336373691,1724795448891,-2487.45835474,0.00011,2]
[336373693,1724795448903,-10180.05444295,0.00011,2]
[336373695,1724795448914,-10134.37836584,0.00011,2]
[336373698,1724795448926,-19868.25852061,0.00011,2]
[336373700,1724795448938,-613.2,0.00011,2]
[336373704,1724795448972,181.79,8.616e-05,2]
[336373710,1724795449025,-776.0,0.00011,2]
[336373712,1724795449035,-29742.3,0.00011,2]
[336373715,1724795449047,-1925.6050417,0.00011,2]
[336373717,1724795449060,-331.69999976,0.00011,2]
[336373719,1724795449072,-3060.0,0.00011,2]
[336373721,1724795449084,-4895.11140472,0.00011,2]
[336373723,1724795449097,-997.47477638,0.00011,2]
[336373725,1724795449109,-312.82061299,0.00011,2]
[336373727,1724795449121,-12119.3032,0.00011,2]